Cogmind - Beta 10.2 @@@ ROGUE MODE // 2021.06.14 @ 21:02:35 Player: kasaphescent Result: Escaped! Performance ------------- Evolutions (9) 4500 Regions Visited (26) 5200 Robots Destroyed (316) 1580 Value Destroyed (17630) 17630 Prototype IDs (57) 1140 Alien Tech Used (2) 400 Bonus (17445) 17445 TOTAL SCORE: 47895 Bonus ------- High Alert Combat Kills 2130 Follower Combat Kills 1896 Met Data Miner 300 Met Zhirov 300 Met Warlord at Base 500 MAIN.C Attacked Warlord 500 Warlord Defense Kill 2928 Met Warlord at Research 2000 Scanned by Researcher 500 Acquired SGEMP 2000 Delivered SGEMP 2000 Win 3000 Friendly Fire -609 Cogmind --------- Core Integrity 1197/1600 Matter 187/300 Energy 616/630 System Corruption 2% Temperature Cool (8) Movement Treading (170) Location To Epsilon Eridani Parts ------- > --- POWER (2) -------- Cooled Antimatter Reactor Reinforced Quantum Reactor > --- PROPULSION (10) -- Armored Heavy Treads Armored Heavy Treads Centrium Leg > --- UTILITY (10) ----- 2N-1CE's Frost Array Large Storage Unit High-capacity Storage Unit Advanced Targeting Computer > --- WEAPON (4) ------- (None) > --- INVENTORY (18) --- Transdimensional Reconstructor Peak State ------------ > --- POWER ------------ Light Quantum Reactor Reinforced Quantum Reactor > --- PROPULSION ------- Armored Heavy Treads Myomer Leg Myomer Leg Myomer Leg Biometal Leg Biometal Leg Centrium Leg Centrium Leg High-density Centrium Leg > --- UTILITY ---------- Advanced Heat Sink Advanced Heat Sink 2N-1CE's Frost Array Large Storage Unit High-capacity Storage Unit Advanced Targeting Computer Advanced Targeting Computer Improved Medium Armor Plating Centrium Heavy Armor Plating > --- WEAPON ----------- Quantum Rifle Quantum Rifle Quantum Rifle Quantum Rifle > --- INVENTORY -------- Cooled Antimatter Reactor Light Quantum Reactor Armored Heavy Treads Armored Heavy Treads Armored Heavy Treads Myomer Leg Myomer Leg Transdimensional Reconstructor Quantum Rifle Quantum Rifle Nova Cannon Heavy Machine Gun Micro-nuke Launcher [Rating: 194] Favorites ----------- Power Cooled Fission Core Engine Light Deuterium Engine Power Core Cooled Fission Core Reactor Light Antimatter Reactor Propulsion Armored Leg Treads Advanced Medium Treads Leg Armored Leg Wheel Compact Wheel Utility Advanced Heat Sink Device Advanced Heat Sink Storage High-capacity Storage Unit Processor Advanced Targeting Computer Hackware Advanced Hacking Suite Protection Improved Medium Armor Plating Weapon Flak Gun Energy Gun Quantum Rifle Energy Cannon Advanced Plasma Cannon Ballistic Gun Flak Gun Ballistic Cannon Heavy Gauss Cannon Launcher Smartbomb Launcher Slashing Weapon Power Sword Piercing Weapon Spear Build | -11 -10 -9 -9 -8 -7 -7 -7 -7 -6 -6 -5 -5 -5 -5 -5 -5 -4 -4 -4 -4 -4 -3 -3 -3 -2 -1 ------- Run | Scr Mat Mat Min Mat Fac Low Low Dat Pro Fac Fac Was Fac Upp Upp Zhi Pro Fac Upp Upp War Pro Res Tes Res Acc Slots Evolved 18 | . . 2 . 2 2 . . . . 2 2 . . . . . . 2 . . . . 2 . 2 2 Power 1 | . . . . . . . . . . . 1 . . . . . . . . . . . . . . . Propulsion 7 | . . 2 . 1 . . . . . . 1 . . . . . . . . . . . 1 . . 2 Utility 8 | . . . . . 2 . . . . 2 . . . . . . . 2 . . . . . . 2 . Weapon 2 | . . . . 1 . . . . . . . . . . . . . . . . . . 1 . . . Parts Attached 439 | 6 7 3 3 24 24 14 3 . 15 17 8 2 16 11 13 4 9 35 16 14 11 7 55 58 46 18 Power 48 | 1 2 . 1 3 1 2 . . 1 1 1 . 2 . 2 . . 3 4 1 2 1 8 5 4 3 Engine 6 | 1 1 . 1 1 . 1 . . . . . . . . . . . . . . . . 1 . . . Core 22 | . 1 . . 2 1 1 . . 1 1 . . 2 . 2 . . 1 1 . 2 1 4 2 . . Reactor 20 | . . . . . . . . . . . 1 . . . . . . 2 3 1 . . 3 3 4 3 Propulsion 141 | 2 . 3 . 14 13 3 1 . 6 10 1 . 7 3 3 . 4 8 5 3 2 2 12 17 12 10 Treads 27 | . . . . . . . . . . 3 1 . . . . . . . 1 . . 1 11 5 . 5 Leg 112 | 2 . 3 . 14 13 3 1 . 6 5 . . 7 3 3 . 4 8 4 3 2 1 1 12 12 5 Wheel 2 | . . . . . . . . . . 2 . . . . . . . . . . . . . . . . Hover . | . . . . . . . . . . . . . . . . . . . . . . . . . . . Flight . | . . . . . . . . . . . . . . . . . . . . . . . . . . . Utility 110 | 1 3 . . 1 5 6 1 . 4 4 2 . 5 4 3 4 3 15 1 7 1 . 15 16 9 . Device 53 | . . . . 1 1 3 1 . 1 1 1 . 1 1 . 3 2 10 1 4 . . 6 13 3 . Storage 9 | 1 1 . . . 2 . . . . . . . 1 . 1 . . . . . . . 1 1 1 . Processor 15 | . 2 . . . . 1 . . . 1 . . 1 . 2 . . 3 . 1 . . . 1 3 . Hackware 1 | . . . . . . . . . . . . . . . . . . . . 1 . . . . . . Protection 32 | . . . . . 2 2 . . 3 2 1 . 2 3 . 1 1 2 . 1 1 . 8 1 2 . Artifact . | . . . . . . . . . . . . . . . . . . . . . . . . . . . Weapon 140 | 2 2 . 2 6 5 3 1 . 4 2 4 2 2 4 5 . 2 9 6 3 6 4 20 20 21 5 Energy Gun 62 | . 1 . . 2 4 1 1 . . 1 2 2 1 2 2 . . 7 3 1 2 1 11 10 6 2 Energy Cannon 22 | . . . . . . . . . . . 2 . 1 2 2 . . 1 1 . 1 1 6 3 1 1 Ballistic Gun 33 | 2 1 . 2 4 . 2 . . 3 . . . . . . . 2 1 1 2 1 . 1 2 8 1 Ballistic Cannon 6 | . . . . . . . . . 1 . . . . . . . . . . . . . 1 1 3 . Launcher 9 | . . . . . . . . . . . . . . . . . . . . . 2 1 . 2 3 1 Special Weapon . | . . . . . . . . . . . . . . . . . . . . . . . . . . . Impact Weapon . | . . . . . . . . . . . . . . . . . . . . . . . . . . . Slashing Weapon 7 | . . . . . 1 . . . . . . . . . 1 . . . 1 . . 1 1 2 . . Piercing Weapon 1 | . . . . . . . . . . 1 . . . . . . . . . . . . . . . . Special Melee Weapon . | . . . . . . . . . . . . . . . . . . . . . . . . . . . Unidentified Prototypes 38 | . . . . . 2 1 . . 1 . . . 2 1 . 3 . 2 . . 4 1 2 16 2 1 Parts Lost 215 | . 3 . 2 16 9 9 . . 10 . . . . 3 8 . 7 14 18 4 7 4 29 30 13 29 Power 26 | . . . 1 3 . 1 . . . . . . . . 2 . . 1 3 1 1 1 6 3 . 3 Propulsion 82 | . . . . 8 5 3 . . 6 . . . . 1 2 . 4 3 5 2 2 3 10 11 5 12 Utility 40 | . 1 . . . 1 3 . . 1 . . . . 1 1 . 1 8 3 . 1 . 7 6 1 5 Weapon 67 | . 2 . 1 5 3 2 . . 3 . . . . 1 3 . 2 2 7 1 3 . 6 10 7 9 Highest Loss Streak 25 | . 3 . 2 10 7 5 . . 7 . . . . 2 5 . 6 7 6 2 4 2 7 8 6 25 Average Slot Usage (%) 93 | . 94 100 99 88 96 95 98 100 97 86 93 94 98 99 97 100 94 96 85 98 98 96 83 85 90 78 Engine 1 | . 5 . 9 5 3 2 7 7 3 . . . . . . . . . . . . . 1 . . . Core 4 | . 8 11 1 2 3 4 . . 3 5 5 5 5 5 8 11 11 8 1 5 5 9 4 6 . . Reactor 2 | . . . . . . . . . . . 5 5 5 5 1 . . 1 8 4 4 . 2 1 7 5 Treads 3 | . . . . . . . . . . 4 4 5 1 . . . . . 1 . . . 18 15 1 3 Leg 29 | . 28 44 44 41 37 35 36 38 36 10 23 23 31 37 37 38 36 34 32 34 34 32 4 13 30 25 Device 11 | . . . . 2 9 6 7 7 7 13 14 17 17 16 16 16 12 16 10 11 10 10 11 15 12 8 Storage 6 | . 14 11 11 9 15 12 7 7 7 6 5 5 5 5 6 5 5 5 5 5 5 5 4 4 6 7 Processor 7 | . 9 11 11 6 . . 7 7 7 6 5 5 5 5 6 11 7 7 15 19 15 15 9 8 7 6 Protection 4 | . . . . . 3 8 7 7 6 13 8 5 5 4 1 . 2 7 . . 4 5 5 2 7 4 Energy Gun 7 | . 8 11 1 2 10 11 13 15 8 . 9 11 10 11 9 5 1 8 6 3 4 7 5 7 1 10 Energy Cannon 2 | . . . . . . . . . . . 4 5 5 5 6 11 6 3 1 . . 3 4 5 2 . Ballistic Gun 5 | . 18 11 19 18 5 4 8 7 13 13 1 . . . . . 7 2 1 8 8 . 1 . 7 . Slashing Weapon 1 | . . . . . 3 5 . . . . . . . . . . . . 2 1 . 2 3 1 . . Naked Turns . | . . . . . . . . . . . . . . . . . . . . . . . . . . . Heaviest Build 158 | 12 41 41 41 51 58 59 53 53 57 67 92 86 93 94 94 90 94 104 86 90 106 104 119 108 158 148 Greatest Support 273 | 20 20 40 40 68 70 75 70 70 93 76 76 76 111 126 128 124 138 138 124 147 147 147 260 260 226 273 Greatest Overweight (x) 4 | 3 2 1 1 3 2 1 . . 2 4 1 1 1 . . . 1 . . . . 3 4 4 1 1 Average Overweight (x) . | . 1 1 . . . . . . . 2 1 1 . . . . . . . . . . . . . . Largest Inventory Capacity 20 | 6 14 12 12 12 12 12 12 12 12 12 12 12 12 12 12 12 12 12 12 12 12 12 20 12 18 18 Average Capacity 12 | 5 9 12 12 12 12 12 12 12 12 12 12 12 12 12 12 12 12 12 12 12 12 12 12 12 15 18 Most Carried 18 | 6 10 12 12 12 12 12 12 9 12 12 12 12 12 12 11 12 10 12 12 7 12 8 12 12 18 16 Average Carried 9 | 3 7 9 10 8 10 9 9 9 11 9 9 11 11 11 8 9 7 10 6 5 8 6 8 10 12 11 Final Capacity 18 | 6 12 12 12 12 12 12 12 12 12 12 12 12 12 12 12 12 12 12 12 12 12 12 12 12 18 18 Final Carried 18 | 6 10 11 11 12 10 6 9 9 9 10 12 12 12 12 8 10 7 12 4 5 7 4 12 11 18 1 Class Distribution -------------------- 36% | Scavenger-Tank 30% | Scavenger-Mutant 27% | Scavenger-Gunner 3% | Mutant Dominant Class ---------------- Mutant | -10/Materials Scavenger-Mutant | -9/Materials Scavenger-Mutant | -9/Mines Scavenger-Gunner | -8/Materials Scavenger-Mutant | -7/Factory Scavenger-Mutant | -7/Lower Caves Scavenger-Tank | -7/Lower Caves Scavenger-Tank | -7/Data Miner Scavenger-Tank | -6/Proximity Caves Scavenger-Tank | -6/Factory Scavenger-Tank | -5/Factory Scavenger-Mutant | -5/Waste Scavenger-Tank | -5/Factory Scavenger-Tank | -5/Upper Caves Scavenger-Gunner | -5/Upper Caves Scavenger-Gunner | -5/Zhirov Scavenger-Tank | -4/Proximity Caves Scavenger-Tank | -4/Factory Scavenger-Mutant | -4/Upper Caves Scavenger-Gunner | -4/Upper Caves Scavenger-Gunner | -4/Warlord Scavenger-Mutant | -3/Proximity Caves Scavenger-Mutant | -3/Research Scavenger-Mutant | -3/Testing Scavenger-Gunner | -2/Research Scavenger-Gunner | -1/Access Resources | -11 -10 -9 -9 -8 -7 -7 -7 -7 -6 -6 -5 -5 -5 -5 -5 -5 -4 -4 -4 -4 -4 -3 -3 -3 -2 -1 ----------- Run | Scr Mat Mat Min Mat Fac Low Low Dat Pro Fac Fac Was Fac Upp Upp Zhi Pro Fac Upp Upp War Pro Res Tes Res Acc Matter Collected 7714 | 260 174 . 88 628 437 207 96 . 378 285 196 96 232 162 168 . 161 423 153 431 263 73 808 781 1134 80 Remotely . | . . . . . . . . . . . . . . . . . . . . . . . . . . . Salvage Created 17172 | . 478 . 43 887 1313 681 199 . 740 309 196 . 496 732 395 . 438 1270 670 452 712 136 2188 2267 1848 722 Parts 650 | . 22 . 6 39 48 24 4 . 19 8 8 . 12 16 8 . 15 63 19 26 20 11 108 100 56 18 Haulers Intercepted 8 | . 1 . . 1 1 . . . . . . . 2 . . . . . . . . . . 2 1 . Recyclers Shooed 5 | . 1 . . 1 . . . . . 1 . . . . . . . 1 . . . . 1 . . . Parts Field Recycled . | . . . . . . . . . . . . . . . . . . . . . . . . . . . Retrieved Matter . | . . . . . . . . . . . . . . . . . . . . . . . . . . . Parts Self-Destructed 173 | . . . . . . 17 9 . 11 . . . . 12 3 . 9 . 21 19 63 9 . . . . Prevented 49 | . . . . . . 5 . . 7 . . . . 7 5 . 7 . 1 4 13 . . . . . Kills | -11 -10 -9 -9 -8 -7 -7 -7 -7 -6 -6 -5 -5 -5 -5 -5 -5 -4 -4 -4 -4 -4 -3 -3 -3 -2 -1 ------- Run | Scr Mat Mat Min Mat Fac Low Low Dat Pro Fac Fac Was Fac Upp Upp Zhi Pro Fac Upp Upp War Pro Res Tes Res Acc Combat Hostiles Destroyed 264 | . 10 . 3 17 11 12 . . 10 1 3 . 4 11 6 . 7 18 11 9 21 5 30 32 30 13 Melee 12 | . . . . . . 1 . . . . . . . . . . . . . . . . 4 7 . . Guns 143 | . 10 . 3 17 10 11 . . 8 1 2 . 3 6 5 . 2 10 6 9 2 2 10 11 10 5 Cannons 57 | . . . . . . . . . . . 1 . 1 5 1 . 5 6 4 . . 3 14 9 8 . AOE 44 | . . . . . . . . . 2 . . . . . . . . 1 . . 19 . 1 3 11 7 Classes Destroyed 23 | . 4 . . 3 2 1 . . 1 . 1 . . 1 . . . 1 . . 5 1 . 2 . 1 Worker 12 | . . . . . 4 . . . . 2 . . . . . . . 3 . . . . 1 1 . 1 Builder 6 | . . . . . . . . . . . . . . . . . . 1 . . . . 2 2 . 1 Tunneler 1 | . . . . . . . . . . . . . . . . . . . . . . . . . . 1 Hauler 8 | . 1 . . 1 1 . . . . . . . 2 . . . . . . . . . . 2 1 . Recycler 15 | . 1 . . 1 6 . . . . 2 . . . . . . . 1 . . . . 4 . . . Minesweeper 1 | . . . . . . . . . . . . . . 1 . . . . . . . . . . . . Mechanic 1 | . . . . . . . . . . . . . . . . . . . . . 1 . . . . . Watcher 4 | . . . . . 2 . . . . . . . . . . . . . . . . . . 1 . 1 Swarmer 30 | . 3 . 3 . . 2 . . 1 . . . . 2 1 . . 1 1 4 . . 4 . 5 3 Grunt 100 | . 7 . . 12 9 5 . . 4 . . . 1 5 1 . 3 1 9 3 8 2 4 14 10 2 Brawler 11 | . . . . . . 3 . . 2 . . . . 2 . . . . . . 3 . . . 1 . Duelist 12 | . . . . 2 . 1 . . . . . . . . . . 1 2 . . 2 . 2 . . 2 Protector 3 | . . . . . . . . . . . . . . . . . . . . . 3 . . . . . Researcher 3 | . . . . . . . . . . . . . . . . . . . . . . . . 3 . . Sentry 25 | . . . . 1 2 1 . . 1 1 1 . 3 2 1 . . 4 1 1 . . 5 . . 1 Demolisher 3 | . . . . . . . . . . . . . . . . . . . . . 1 . . . 1 1 Hunter 28 | . . . . 2 . . . . 1 . . . . . 3 . 2 2 . . . 2 2 6 4 4 Programmer 38 | . . . . . . . . . . . 2 . . . . . 1 8 . 1 2 1 12 9 2 . Behemoth 3 | . . . . . . . . . 1 . . . . . . . . . . . . . 1 . 1 . Striker 7 | . . . . . . . . . . . . . . . . . . . . . 1 . . 2 4 . Executioner 3 | . . . . . . . . . . . . . . . . . . . . . 1 . . . 2 . Alpha 7 1 | . . . . . . . . . . . . . . . . . . . . . . . . 1 . . Decomposer 3 | . . . . . . . . . . . . . . . 3 . . . . . . . . . . . Samaritan 1 | . . . . . . . . . . . . . . . . . . . . . . 1 . . . . Thug 1 | . . . . . . . . . . . . . . . . . . . . . 1 . . . . . Best Kill Streak 19 | . 5 . 2 6 5 4 . . 4 2 1 . 1 5 5 . 3 3 6 4 13 2 7 5 19 9 Combat Bots Only 13 | . 5 . 2 6 4 4 . . 4 1 1 . 1 5 5 . 3 3 6 4 13 2 4 5 11 6 Max Kills in Single Turn 6 | . 1 . 1 2 2 1 . . 2 1 1 . 1 1 1 . 1 1 1 2 6 1 2 2 4 3 Gunslinging 1 | . . . . . . . . . . . . . . . . . . . . 1 . . . . . . Exploded 4 | . . . . . . . . . 1 . . . . . . . . 1 . . 4 . 1 2 4 3 Melee 1 | . . . . . . 1 . . . . . . . . . . . . . . . . 1 1 . . Uniques/NPCs Destroyed . | . . . . . . . . . . . . . . . . . . . . . . . . . . . Combat | -11 -10 -9 -9 -8 -7 -7 -7 -7 -6 -6 -5 -5 -5 -5 -5 -5 -4 -4 -4 -4 -4 -3 -3 -3 -2 -1 -------- Run | Scr Mat Mat Min Mat Fac Low Low Dat Pro Fac Fac Was Fac Upp Upp Zhi Pro Fac Upp Upp War Pro Res Tes Res Acc Damage Taken 42942 | . 486 . 271 1803 1241 1163 . . 1203 381 517 . 411 888 1353 . 904 2461 3286 705 932 1191 5878 6043 4928 6897 Core 3197 | . 70 . 22 386 197 45 . . 132 52 . . 17 28 . . 140 137 388 105 67 40 374 348 246 403 Absorbed by Shields . | . . . . . . . . . . . . . . . . . . . . . . . . . . . Reduced by Siege Mode 23 | . . . . . . . . . . . . . . . . . . . . . . . 23 . . . Core Remaining (%) 68 | 100 72 . 94 29 . . . . 46 93 . . . . . . 81 . . . . 35 . 44 83 74 Volleys Fired 872 | . 43 . 18 98 63 30 11 . 32 14 15 . 15 29 28 . 22 73 35 18 18 31 87 93 73 26 Largest 4 | . 2 . 2 3 3 2 1 . 3 3 3 . 3 3 3 . 3 3 3 3 3 2 4 4 4 4 Hottest 398 | . 85 . 85 116 143 130 50 . 133 112 239 . 260 260 267 . 259 274 281 135 133 120 358 398 388 376 Shots Fired 2049 | . 73 . 27 202 128 57 11 . 83 42 34 . 47 85 74 1 53 192 87 41 34 37 244 220 190 87 Gun 1524 | . 73 . 27 202 128 57 11 . 78 32 25 . 32 56 50 . 17 149 63 41 27 25 137 114 103 77 Cannon 492 | . . . . . . . . . 5 10 9 . 15 29 24 1 36 43 24 . 2 9 107 97 77 4 Launcher 33 | . . . . . . . . . . . . . . . . . . . . . 5 3 . 9 10 6 Special . | . . . . . . . . . . . . . . . . . . . . . . . . . . . Kinetic 685 | . 68 . 14 182 56 26 . . 54 38 . . . . . . 7 22 2 34 22 . 37 9 114 . Thermal 984 | . 5 . 13 20 26 14 . . . . 22 . 37 71 58 . 31 159 85 . . . 134 187 41 81 Explosive 25 | . . . . . . . . . . . . . . . . . . . . . . . . 9 10 6 Electromagnetic 299 | . . . . . 46 17 11 . 29 4 12 . 10 14 16 1 15 11 . 7 5 2 59 15 25 . Entropic 56 | . . . . . . . . . . . . . . . . . . . . . 7 35 14 . . . Robot Hit Streak 62 | . 19 . 3 15 19 11 11 . 12 6 8 . 17 15 11 . 9 17 17 9 16 18 31 62 16 27 Robot Miss Streak 10 | . 2 . 6 3 2 10 4 . 10 5 2 . 1 4 6 . 2 2 4 2 2 4 3 2 3 2 Penetration Max 1 | . . . . 1 1 . . . . . . . . . . . . . . . 1 . . . 1 . Secondary Targets 20 | . 3 . 2 . 1 2 . . 3 . . . . . 1 . . . 2 2 1 1 . 1 . 1 Max Gunslinging Chain 1 | . 1 . 1 . 1 1 . . 1 . . . . . 1 . . . 1 1 1 1 . 1 . 1 Shots Hit Robots 1530 | . 56 . 9 148 96 49 9 . 69 24 24 . 34 59 36 . 36 135 64 28 28 38 214 170 132 72 Core Hits 750 | . 27 . 4 59 40 41 5 . 63 10 11 . 13 22 16 . 14 50 23 15 39 16 93 85 60 44 Critical Hits 44 | . 1 . . 1 . . 1 . 2 1 . . . . 3 . 1 2 5 1 5 3 3 2 13 . Critical Kills 16 | . 1 . . . . . 1 . . 1 . . . . . . . . 1 1 1 2 1 2 5 . Critical Parts Destroyed 23 | . . . . 1 . . . . 1 . . . . . 3 . 1 2 4 . 3 1 2 . 5 . Melee Attacks 99 | . . . . . . 1 . . . 4 . . . . . . . . 9 . . 9 47 29 . . Impact . | . . . . . . . . . . . . . . . . . . . . . . . . . . . Slashing 95 | . . . . . . 1 . . . . . . . . . . . . 9 . . 9 47 29 . . Piercing 4 | . . . . . . . . . . 4 . . . . . . . . . . . . . . . . Sneak Attacks 8 | . . . . . . . . . . 3 . . . . . . . . . . . 1 3 1 . . Combat Hostiles . | . . . . . . . . . . . . . . . . . . . . . . . . . . . Follow-up Attacks . | . . . . . . . . . . . . . . . . . . . . . . . . . . . Damage Inflicted 53964 | . 583 . 130 1682 1634 858 184 . 1818 644 464 . 865 1524 1192 . 1043 4020 1824 683 7325 2262 7688 7659 6140 3742 Guns 25510 | . 583 . 130 1682 1634 830 184 . 1468 269 348 . 568 905 685 . 333 3005 1070 683 651 1044 2869 2676 2118 1775 Cannons 12200 | . . . . . . . . . 135 104 116 . 297 619 359 . 710 899 428 . . 484 3618 2286 2006 139 Explosions 12649 | . . . . . . . . . 215 . . . . . 148 . . 113 . . 6674 352 75 1228 2016 1828 Melee 3593 | . . . . . . 28 . . . 271 . . . . . . . . 326 . . 382 1126 1460 . . Ramming 12 | . . . . . . . . . . . . . . . . . . 3 . . . . . 9 . . Kinetic 9625 | . 510 . 46 1499 565 420 . . 1107 334 . . . . . . 132 343 28 597 546 . 880 152 2466 . Thermal 21271 | . 73 . 84 183 299 141 . . 215 . 388 . 689 1264 927 . 671 3499 1470 . . . 3863 4413 1178 1914 Explosive 5039 | . . . . . . . . . . . . . . . . . . . . . . . . 1195 2016 1828 Electromagnetic 5086 | . . . . . 770 269 184 . 496 39 76 . 176 260 265 . 240 175 . 86 105 . 1035 430 480 . Impact . | . . . . . . . . . . . . . . . . . . . . . . . . . . . Slashing 3322 | . . . . . . 28 . . . . . . . . . . . . 326 . . 382 1126 1460 . . Piercing 271 | . . . . . . . . . . 271 . . . . . . . . . . . . . . . . Entropic 9338 | . . . . . . . . . . . . . . . . . . . . . 6674 1880 784 . . . Highest Corruption 34 | . . . . . . 3 3 3 3 1 6 6 6 6 6 6 8 8 8 9 9 . 20 34 . 2 Average Corruption 8 | . . . . . . 3 3 3 3 1 5 6 6 6 6 6 7 4 8 8 9 . 11 24 . 1 Corruption Purged . | . . . . . . . . . . . . . . . . . . . . . . . . . . . Effects 593 | . . . . . . 4 32 2 27 2 14 12 39 40 24 4 21 27 34 28 2 . 121 159 . 1 Message Errors 125 | . . . . . . 1 7 . 7 1 2 4 9 12 6 1 4 6 14 7 . . 20 23 . 1 Matter Fused 112 | . . . . . . 1 8 1 6 . 8 4 8 8 5 1 3 3 5 9 1 . 18 23 . . Heat Flow Errors 41 | . . . . . . . 7 . 2 . . . 3 2 1 . 3 3 . 3 . . 6 11 . . Energy Discharges 52 | . . . . . . 1 4 . . 1 1 3 6 1 1 . 2 4 4 4 . . 10 10 . . Parts Rejected 2 | . . . . . . . . . . . . . . . . . . 1 . . . . 1 . . . Data Loss (minor) 57 | . . . . . . 1 6 1 8 . 1 . 4 5 3 1 1 2 2 3 . . 14 5 . . Data Loss (major) 23 | . . . . . . . . . . . . 1 3 2 2 . 1 1 2 1 1 . 5 4 . . Misfires 9 | . . . . . . . . . . . . . 2 2 . 1 . . 1 . . . . 3 . . Alerts 3 | . . . . . . . . . . . . . . . . . . . . . . . 1 2 . . Misdirections 26 | . . . . . . . . . . . . . . . . . . . . . . . 9 17 . . Targeting Errors 123 | . . . . . . . . . 4 . 2 . 4 6 5 . 6 5 5 . . . 34 52 . . Weapon Failures 20 | . . . . . . . . . . . . . . 2 1 . 1 2 1 1 . . 3 9 . . Overload Shots . | . . . . . . . . . . . . . . . . . . . . . . . . . . . Overflow Damage 1349 | . . . . . . . . . . 75 . . . 13 24 . 2 27 61 . 309 95 421 145 81 96 Projectiles 326 | . . . . . . . . . . . . . . 13 24 . 2 27 29 . . 22 85 71 53 . Explosions 466 | . . . . . . . . . . . . . . . . . . . . . 309 14 . 19 28 96 Melee 557 | . . . . . . . . . . 75 . . . . . . . . 32 . . 59 336 55 . . Knockbacks 8 | . . . . . . . . . . 1 . . . . . . . . . . . . 6 . 1 . Impact . | . . . . . . . . . . . . . . . . . . . . . . . . . . . Kinetic 8 | . . . . . . . . . . 1 . . . . . . . . . . . . 6 . 1 . Secondary . | . . . . . . . . . . . . . . . . . . . . . . . . . . . Self-Inflicted Damage 469 | . . . . . . . . . . . . . . . . . . . . . . . 67 26 39 337 Shots 10 | . . . . . . . . . . . . . . . . . . . . . . . 1 1 2 6 Rammed 1 | . . . . . . . . . . . . . . . . . . . . . . . . 1 . . Targets Rammed 5 | . . . . . . . . . . . . . . . . . . 2 . . . . . 2 . 1 Kicked 3 | . . . . . . . . . . . . . . . . . . 2 . . . . . . . 1 Crushed 1 | . . . . . . . . . . . . . . . . . . . . . . . . 1 . . Highest Temperature 355 | . 78 . 232 39 27 39 254 . 219 . 290 . 174 71 115 . 121 274 201 222 . . 355 355 . . Average Temperature 74 | . 11 . 136 8 8 18 110 . 68 . 163 . 40 52 47 . 81 72 71 114 . . 80 95 . . Received Heat Transfer 5475 | . 201 . . 711 567 171 . . 204 78 9 . 54 180 153 . 96 162 594 69 66 114 519 762 360 405 Effects 6 | . . . 2 . . . . . 1 . 2 . . . . . . . . . . . 1 . . . Shutdowns 1 | . . . . . . . . . . . . . . . . . . . . . . . 1 . . . Energy Bleed 1 | . . . . . . . . . 1 . . . . . . . . . . . . . . . . . Interference 4 | . . . 2 . . . . . . . 2 . . . . . . . . . . . . . . . Siege Activations 3 | . . . . . . . . . . . . . . . . . . . . . . . 2 1 . . Total Turns 102 | . . . . . . . . . . . . . . . . . . . . . . . 41 61 . . Longest Duration 61 | . . . . . . . . . . . . . . . . . . . . . . . 29 61 . . Robots Corrupted 3 | . . . . . 1 . . . . . . . . . . . . . . . . . 1 . 1 . Combat Hostiles 3 | . . . . . 1 . . . . . . . . . . . . . . . . . 1 . 1 . Parts Fried 19 | . . . . . 6 1 1 . . . . . . 2 1 . 1 . . . . . 2 1 2 2 Impact Corruptions . | . . . . . . . . . . . . . . . . . . . . . . . . . . . Robots Melted 6 | . . . . . . . . . . . . . 1 . . . . 1 1 . . . . 2 . 1 Combat Hostiles 5 | . . . . . . . . . . . . . . . . . . 1 1 . . . . 2 . 1 Parts Melted 64 | . . . . . . . . . . . 3 . 1 7 3 . . 18 5 . . . 3 12 5 7 Heat Transferred 25565 | . 185 . 222 444 703 110 . . 100 . 483 . 1079 1986 1188 . 559 4143 1989 . . . 3365 5586 962 2461 Parts Sabotaged . | . . . . . . . . . . . . . . . . . . . . . . . . . . . Parts Stolen . | . . . . . . . . . . . . . . . . . . . . . . . . . . . Parts Stripped . | . . . . . . . . . . . . . . . . . . . . . . . . . . . Power Chain Reactions 5 | . . . . . . . . . 2 . . . . . 1 . . . . . . . 1 1 . . Missiles Intercepted . | . . . . . . . . . . . . . . . . . . . . . . . . . . . Alert | -11 -10 -9 -9 -8 -7 -7 -7 -7 -6 -6 -5 -5 -5 -5 -5 -5 -4 -4 -4 -4 -4 -3 -3 -3 -2 -1 ------- Run | Scr Mat Mat Min Mat Fac Low Low Dat Pro Fac Fac Was Fac Upp Upp Zhi Pro Fac Upp Upp War Pro Res Tes Res Acc Peak Influence 1687 | . 247 19 72 268 533 . . . . 70 83 5 1687 . . . . 283 . . . . 328 520 1023 1057 Initial 482 | . . 19 7 27 121 . . . . 18 34 5 3 . . . . . . . . . 3 161 290 482 Average 291 | . 130 19 65 115 263 . . . . 28 27 5 782 . . . . 103 . . . . 203 304 758 783 Maximum Alert Level 5 | . 1 . . 1 2 . . . . . . . 5 . . . . 1 . . . . 1 2 3 3 Low Security (%) 52 | 100 63 100 100 84 43 . . . . 100 100 100 29 . . . . 90 . . . . 34 29 . . Level 1 24 | . 36 . . 15 28 . . . . . . . 10 . . . . 9 . . . . 65 38 12 . Level 2 10 | . . . . . 28 . . . . . . . 7 . . . . . . . . . . 31 25 12 Level 3 10 | . . . . . . . . . . . . . 12 . . . . . . . . . . . 61 87 Level 4 2 | . . . . . . . . . . . . . 27 . . . . . . . . . . . . . Level 5 . | . . . . . . . . . . . . . 12 . . . . . . . . . . . . . High Security . | . . . . . . . . . . . . . . . . . . . . . . . . . . . Max Security . | . . . . . . . . . . . . . . . . . . . . . . . . . . . Squads Dispatched 46 | . 2 . . 1 3 . . . . . 1 . 8 . . . . 7 . . . . 4 10 1 9 Investigation 4 | . . . . . . . . . . . . . 1 . . . . . . . . . . 1 1 1 Extermination 16 | . . . . . 1 . . . . . 1 . 1 . . . . 3 . . . . 4 5 . 1 Reinforcement 19 | . 2 . . . 2 . . . . . . . 5 . . . . 3 . . . . . 4 . 3 Assault 2 | . . . . . . . . . . . . . 1 . . . . . . . . . . . . 1 Garrison 5 | . . . . 1 . . . . . . . . . . . . . 1 . . . . . . . 3 Intercept . | . . . . . . . . . . . . . . . . . . . . . . . . . . . Construction Impeded 5 | . . . . . . . . . . . . . 2 . . . . 1 . . . . . . . 2 Haulers Reinforced 5 | . . . . . 1 . . . . . . . 2 . . . . 1 . . . . . 1 . . Stealth | -11 -10 -9 -9 -8 -7 -7 -7 -7 -6 -6 -5 -5 -5 -5 -5 -5 -4 -4 -4 -4 -4 -3 -3 -3 -2 -1 --------- Run | Scr Mat Mat Min Mat Fac Low Low Dat Pro Fac Fac Was Fac Upp Upp Zhi Pro Fac Upp Upp War Pro Res Tes Res Acc Distress Signals 19 | . . . . 3 1 . . . . 1 . . 3 . . . . 3 . . . . . 3 2 3 Communications Jammed . | . . . . . . . . . . . . . . . . . . . . . . . . . . . Distress Signals . | . . . . . . . . . . . . . . . . . . . . . . . . . . . Times Spotted 471 | . 14 . 4 28 27 16 . . 18 5 4 . 30 21 8 . 8 30 26 10 35 14 51 46 41 35 Peak Tracking Total 16 | . 4 . 4 8 6 9 . . 5 1 2 . 7 9 5 . 4 7 10 4 16 5 7 6 9 11 Tactical Retreats 42 | . . . . 3 . 2 . . 3 1 . . 1 3 1 . 1 . 5 1 3 3 8 2 3 2 Traps | -11 -10 -9 -9 -8 -7 -7 -7 -7 -6 -6 -5 -5 -5 -5 -5 -5 -4 -4 -4 -4 -4 -3 -3 -3 -2 -1 ------- Run | Scr Mat Mat Min Mat Fac Low Low Dat Pro Fac Fac Was Fac Upp Upp Zhi Pro Fac Upp Upp War Pro Res Tes Res Acc Traps Triggered 11 | . . . . . . . . . . 1 1 . 4 . . . . 2 . . . . 1 1 . 1 Indirectly . | . . . . . . . . . . . . . . . . . . . . . . . . . . . Trap Hack Attempts . | . . . . . . . . . . . . . . . . . . . . . . . . . . . Triggered . | . . . . . . . . . . . . . . . . . . . . . . . . . . . Disarmed . | . . . . . . . . . . . . . . . . . . . . . . . . . . . Reprogrammed . | . . . . . . . . . . . . . . . . . . . . . . . . . . . Reused . | . . . . . . . . . . . . . . . . . . . . . . . . . . . Traps Extracted . | . . . . . . . . . . . . . . . . . . . . . . . . . . . Installed . | . . . . . . . . . . . . . . . . . . . . . . . . . . . Triggered 22 | . . . . . . 1 . . . . . . . 3 . . 2 . . . 16 . . . . . Machines | -11 -10 -9 -9 -8 -7 -7 -7 -7 -6 -6 -5 -5 -5 -5 -5 -5 -4 -4 -4 -4 -4 -3 -3 -3 -2 -1 ---------- Run | Scr Mat Mat Min Mat Fac Low Low Dat Pro Fac Fac Was Fac Upp Upp Zhi Pro Fac Upp Upp War Pro Res Tes Res Acc Machines Disabled 25 | . . . . . 1 . . . . 1 . . 7 . . . . 3 . . 2 . 1 6 2 2 Max in Single Turn 3 | . . . . . 1 . . . . 1 . . 1 . . . . 3 . . 2 . 1 1 1 2 Garrison Access 4 | . . . . . . . . . . . 1 . 1 . . . . 1 . . . . . . 1 . Machines Sabotaged . | . . . . . . . . . . . . . . . . . . . . . . . . . . . Garrisons Compromised . | . . . . . . . . . . . . . . . . . . . . . . . . . . . Overloaded Fab Kills . | . . . . . . . . . . . . . . . . . . . . . . . . . . . Fab Network Shutdowns 1 | . . . . . 1 . . . . . . . . . . . . . . . . . . . . . Hacking | -11 -10 -9 -9 -8 -7 -7 -7 -7 -6 -6 -5 -5 -5 -5 -5 -5 -4 -4 -4 -4 -4 -3 -3 -3 -2 -1 --------- Run | Scr Mat Mat Min Mat Fac Low Low Dat Pro Fac Fac Was Fac Upp Upp Zhi Pro Fac Upp Upp War Pro Res Tes Res Acc Machines Accessed 48 | . . . . 1 5 . 1 4 . . 4 . 10 . . 4 . 8 . . 1 . 4 4 1 1 Terminals 22 | . . . . 1 4 . . . . . 2 . 8 . . . . 3 . . . . 1 2 . 1 Fabricators 7 | . . . . . 1 . . . . . . . 1 . . . . 2 . . . . 2 1 . . Repair Stations 2 | . . . . . . . . . . . 1 . . . . . . 1 . . . . . . . . Recycling Units 1 | . . . . . . . . . . . . . . . . . . 1 . . . . . . . . Scanalyzers . | . . . . . . . . . . . . . . . . . . . . . . . . . . . Garrison Access 6 | . . . . . . . . . . . 1 . 1 . . . . 1 . . . . 1 1 1 . Total Hacks 140 | . . . . 2 14 . 1 28 . . 15 . 24 . . 17 . 21 . . 1 . 6 7 2 2 Successful 94 | . . . . 1 6 . 1 28 . . 11 . 14 . . 17 . 12 . . 1 . 2 . . 1 Failed 46 | . . . . 1 8 . . . . . 4 . 10 . . . . 9 . . . . 4 7 2 1 Catastrophic 15 | . . . . . 2 . . . . . . . 3 . . . . 2 . . . . 2 4 1 1 Database Lockouts . | . . . . . . . . . . . . . . . . . . . . . . . . . . . Manual 46 | . . . . 2 11 . . . . . 8 . 14 . . . . 5 . . 1 . 1 3 1 . Terminals 55 | . . . . 2 11 . . . . . 11 . 20 . . . . 6 . . . . 1 2 . 2 Fabricators 16 | . . . . . 3 . . . . . . . 2 . . . . 4 . . . . 4 3 . . Repair Stations 7 | . . . . . . . . . . . 2 . . . . . . 5 . . . . . . . . Recycling Units 2 | . . . . . . . . . . . . . . . . . . 2 . . . . . . . . Scanalyzers . | . . . . . . . . . . . . . . . . . . . . . . . . . . . Garrison Access 13 | . . . . . . . . . . . 2 . 2 . . . . 4 . . . . 1 2 2 . Terminal Hacks 57 | . . . . . 1 . 1 28 . . 5 . 3 . . 17 . . . . 1 . . . . 1 Record 17 | . . . . . . . . 11 . . 1 . . . . 5 . . . . . . . . . . Part Schematic 13 | . . . . . . . . 7 . . 1 . 1 . . 4 . . . . . . . . . . Robot Schematic 7 | . . . . . . . . 7 . . . . . . . . . . . . . . . . . . Robot Analysis 4 | . . . . . . . . . . . . . . . . 4 . . . . . . . . . . Prototype ID Bank 8 | . . . . . . . . 3 . . . . 1 . . 4 . . . . . . . . . . Open Door 3 | . . . . . . . 1 . . . . . . . . . . . . . 1 . . . . 1 Unreport Threat 3 | . . . . . 1 . . . . . 2 . . . . . . . . . . . . . . . Locate Traps 1 | . . . . . . . . . . . . . 1 . . . . . . . . . . . . . Zone Layout 1 | . . . . . . . . . . . 1 . . . . . . . . . . . . . . . Fabricator Hacks 9 | . . . . . 2 . . . . . . . 2 . . . . 3 . . . . 2 . . . Load Schematic 3 | . . . . . . . . . . . . . 1 . . . . 1 . . . . 1 . . . Build 6 | . . . . . 2 . . . . . . . 1 . . . . 2 . . . . 1 . . . Repair Station Hacks 6 | . . . . . . . . . . . 2 . . . . . . 4 . . . . . . . . Scan Component 3 | . . . . . . . . . . . 1 . . . . . . 2 . . . . . . . . Repair 3 | . . . . . . . . . . . 1 . . . . . . 2 . . . . . . . . Recycling Unit Hacks 1 | . . . . . . . . . . . . . . . . . . 1 . . . . . . . . Retrieve Components 1 | . . . . . . . . . . . . . . . . . . 1 . . . . . . . . Scanalyzer . | . . . . . . . . . . . . . . . . . . . . . . . . . . . Garrison Access Hacks 3 | . . . . . . . . . . . 1 . 1 . . . . 1 . . . . . . . . Seal Access 3 | . . . . . . . . . . . 1 . 1 . . . . 1 . . . . . . . . Unauthorized Hacks 18 | . . . . 1 3 . . . . . 3 . 8 . . . . 3 . . . . . . . . Terminals 18 | . . . . 1 3 . . . . . 3 . 8 . . . . 3 . . . . . . . . Track 2 | . . . . . . . . . . . 1 . . . . . . 1 . . . . . . . . Botnet 16 | . . . . 1 3 . . . . . 2 . 8 . . . . 2 . . . . . . . . Fabricators . | . . . . . . . . . . . . . . . . . . . . . . . . . . . Repair Stations . | . . . . . . . . . . . . . . . . . . . . . . . . . . . Recycling Units . | . . . . . . . . . . . . . . . . . . . . . . . . . . . Scanalyzers . | . . . . . . . . . . . . . . . . . . . . . . . . . . . Garrison Access . | . . . . . . . . . . . . . . . . . . . . . . . . . . . Data Cores Recovered 1 | . . . . . . . . . . . . . 1 . . . . . . . . . . . . . Used . | . . . . . . . . . . . . . . . . . . . . . . . . . . . Hacking Detections 34 | . . . . 1 4 . . . . . 3 . 8 . . . . 8 . . . . 4 4 1 1 Full Trace Events 3 | . . . . . . . . . . . . . . . . . . . . . . . . 1 1 1 Feedback Events 1 | . . . . . . . . . . . . . . . . . . . . . . . . . . 1 Corruption 1 | . . . . . . . . . . . . . . . . . . . . . . . . . . 1 Feedback Blocked . | . . . . . . . . . . . . . . . . . . . . . . . . . . . Robot Schematics Acquired 7 | . . . . . . . . 7 . . . . . . . . . . . . . . . . . . Robots Built 8 | . . . . . 6 . . . . . . . . . . . . 2 . . . . . . . . Matter 822 | . . . . . 504 . . . . . . . . . . . . 318 . . . . . . . . Time 352 | . . . . . 268 . . . . . . . . . . . . 84 . . . . . . . . Total Robot Build Rating 36 | . . . . . 24 . . . . . . . . . . . . 12 . . . . . . . . Part Schematics Acquired 13 | . . . . . . . . 7 . . 1 . 1 . . 4 . . . . . . . . . . Parts Built 5 | . . . . . . . . . . . . . 2 . . . . 2 . . . . 1 . . . Matter 614 | . . . . . . . . . . . . . 190 . . . . 190 . . . . 234 . . . Time 117 | . . . . . . . . . . . . . 31 . . . . 47 . . . . 39 . . . Total Part Build Rating 27 | . . . . . . . . . . . . . 10 . . . . 10 . . . . 7 . . . Parts Repaired 3 | . . . . . . . . . . . 1 . . . . . . 2 . . . . . . . . Time 106 | . . . . . . . . . . . 56 . . . . . . 50 . . . . . . . . Parts Recycled . | . . . . . . . . . . . . . . . . . . . . . . . . . . . Recycled Matter . | . . . . . . . . . . . . . . . . . . . . . . . . . . . Retrieved Matter . | . . . . . . . . . . . . . . . . . . . . . . . . . . . Retrieved Components 3 | . . . . . . . . . . . . . . . . . . 3 . . . . . . . . Parts Scanalyzed . | . . . . . . . . . . . . . . . . . . . . . . . . . . . Part Schematics Acquired . | . . . . . . . . . . . . . . . . . . . . . . . . . . . Parts Damaged . | . . . . . . . . . . . . . . . . . . . . . . . . . . . Bothacking | -11 -10 -9 -9 -8 -7 -7 -7 -7 -6 -6 -5 -5 -5 -5 -5 -5 -4 -4 -4 -4 -4 -3 -3 -3 -2 -1 ------------ Run | Scr Mat Mat Min Mat Fac Low Low Dat Pro Fac Fac Was Fac Upp Upp Zhi Pro Fac Upp Upp War Pro Res Tes Res Acc Used RIF Installer . | . . . . . . . . . . . . . . . . . . . . . . . . . . . Robots Hacked . | . . . . . . . . . . . . . . . . . . . . . . . . . . . Non-combat . | . . . . . . . . . . . . . . . . . . . . . . . . . . . Combat . | . . . . . . . . . . . . . . . . . . . . . . . . . . . Robot Hacks Applied . | . . . . . . . . . . . . . . . . . . . . . . . . . . . Relay Couplers Released 5 | . . . . . . . . . . . . . . . . . . . . . . . . . 5 . Machine Destruction 2 | . . . . . . . . . . . . . . . . . . . . . . . . . 2 . Programmers 3 | . . . . . . . . . . . . . . . . . . . . . . . . . 3 . Robots Rewired 5 | . . . . . . 2 . . . . . . . 2 . . . . . . . . . 1 . . Allies Hacked 1 | . . . . . 1 . . . . . . . . . . . . . . . . . . . . . Hacks Repelled . | . . . . . . . . . . . . . . . . . . . . . . . . . . . Allies | -11 -10 -9 -9 -8 -7 -7 -7 -7 -6 -6 -5 -5 -5 -5 -5 -5 -4 -4 -4 -4 -4 -3 -3 -3 -2 -1 -------- Run | Scr Mat Mat Min Mat Fac Low Low Dat Pro Fac Fac Was Fac Upp Upp Zhi Pro Fac Upp Upp War Pro Res Tes Res Acc Total Allies 37 | . . . . . 6 2 . . 1 . . 20 . 2 . . . 2 . . . . . 1 . 3 Largest Group 20 | . . . . . 6 3 2 2 3 . . 20 20 2 . . . 2 . . . . . 1 . 3 Highest-Rated Group 793 | . . . . . 180 80 62 58 152 . . 793 793 60 . . . 92 . . . . . 64 . 368 Highest-Rated Ally 131 | . . . . . 30 32 32 32 94 . . 50 50 30 . . . 46 . . . . . 64 . 131 Total Orders 3 | . . . . . . . . . 2 . . . . . . . . . . 1 . . . . . . STAY 1 | . . . . . . . . . 1 . . . . . . . . . . . . . . . . . FOLLOW 1 | . . . . . . . . . 1 . . . . . . . . . . . . . . . . . EXPLORE 1 | . . . . . . . . . . . . . . . . . . . . 1 . . . . . . Ally Attacks 236 | . . . . . 24 1 8 . 11 . . . 137 7 . . . 17 . . . . . 7 . 24 Total Damage 9457 | . . . . . 769 41 159 . 275 . . . 5958 238 . . . 701 . . . . . 301 . 1015 Kills 71 | . . . . . 5 1 4 . 2 . . . 46 1 . . . 4 . . . . . 2 . 6 Allies Corrupted 2 | . . . . . 1 1 . . . . . . . . . . . . . . . . . . . . Allies Melted 1 | . . . . . . . . . . . . . . 1 . . . . . . . . . . . . Intel | -11 -10 -9 -9 -8 -7 -7 -7 -7 -6 -6 -5 -5 -5 -5 -5 -5 -4 -4 -4 -4 -4 -3 -3 -3 -2 -1 ------- Run | Scr Mat Mat Min Mat Fac Low Low Dat Pro Fac Fac Was Fac Upp Upp Zhi Pro Fac Upp Upp War Pro Res Tes Res Acc Robot Analysis Total 4 | . . . . . . . . . . . . . . . . 4 . . . . . . . . . . Derelict Logs Recovered 7 | . . . . . . 1 1 . . . . . . . 1 . . . 2 2 . . . . . . Drone Launches 1 | . . . . . . . . . . . . . . . . . . . . 1 . . . . . . Drone Recoveries . | . . . . . . . . . . . . . . . . . . . . . . . . . . . Exploration | -11 -10 -9 -9 -8 -7 -7 -7 -7 -6 -6 -5 -5 -5 -5 -5 -5 -4 -4 -4 -4 -4 -3 -3 -3 -2 -1 ------------- Run | Scr Mat Mat Min Mat Fac Low Low Dat Pro Fac Fac Was Fac Upp Upp Zhi Pro Fac Upp Upp War Pro Res Tes Res Acc Turns Passed 23214 | 57 556 116 201 758 1138 982 1548 102 1358 573 805 376 1055 1030 776 200 626 1965 856 864 711 825 2183 1782 1223 548 Spaces Moved 14099 | 38 263 72 100 332 549 673 1145 76 943 325 449 239 701 710 554 159 444 1092 537 641 534 560 1023 831 775 334 Core 9 | 9 . . . . . . . . . . . . . . . . . . . . . . . . . . Treads 1281 | . . . . . . . . . . . . . . . . . . . . . . 2 850 375 . 54 Legs 12633 | 29 263 72 100 332 549 673 1145 76 943 149 449 239 701 710 554 159 444 1092 537 641 534 558 173 456 775 280 Wheels 176 | . . . . . . . . . . 176 . . . . . . . . . . . . . . . . Hover . | . . . . . . . . . . . . . . . . . . . . . . . . . . . Flight . | . . . . . . . . . . . . . . . . . . . . . . . . . . . Fastest Speed 50 | 50 120 150 120 120 120 120 120 120 120 110 150 150 120 120 120 120 120 120 120 120 120 120 120 100 114 116 Average Speed 127 | 111 154 150 149 125 145 126 120 120 121 140 150 150 127 120 120 120 120 120 120 120 120 120 149 130 116 126 Slowest Speed 240 | 200 180 150 150 210 180 150 120 120 180 180 150 150 150 120 120 120 150 120 120 120 120 220 240 240 146 190 Overloaded Moves . | . . . . . . . . . . . . . . . . . . . . . . . . . . . Propulsion Burnouts . | . . . . . . . . . . . . . . . . . . . . . . . . . . . Robots Hopped 2 | . . . . . . . 2 . . . . . . . . . . . . . . . . . . . Cave-ins Triggered . | . . . . . . . . . . . . . . . . . . . . . . . . . . . Exploration Rate (%) 47 | 5 42 11 42 22 19 79 97 68 72 11 11 88 25 68 67 61 59 27 60 82 71 65 21 71 19 16 Regions Visited 26 Branch Regions 14 Pre-discovered Areas 4 | . . . . . . . . 1 . . . . . . . 3 . . . . . . . . . . Known Exits Taken 12 | . . . . . . 1 1 1 1 1 . . 1 1 1 1 1 . 1 . . 1 . . . . Unknown Exits Taken 12 | 1 1 1 1 1 1 . . . . . . . . . . . . 1 . 1 1 . 1 1 1 . Scrap Searched 12 | . . . 1 . . 1 5 . . . . . . 2 1 . . . . 2 . . . . . . Spaces Dug 46 | . . . . . . . . . . 1 1 . . 1 . . . 9 . . . . 20 14 . . Terrain Destroyed 769 | . . . . . . . . . 16 5 5 . 5 10 19 . 9 70 14 24 71 146 48 137 105 85 Melee 21 | . . . . . . . . . . 1 . . . . . . . . . . . . 18 2 . . Projectile 198 | . . . . . . . . . . 4 5 . 5 10 10 . 9 28 14 24 5 20 22 25 17 . AOE 550 | . . . . . . . . . 16 . . . . . 9 . . 42 . . 66 126 8 110 88 85 Terrain Rammed . | . . . . . . . . . . . . . . . . . . . . . . . . . . . Walls Destroyed . | . . . . . . . . . . . . . . . . . . . . . . . . . . . Machines Disabled . | . . . . . . . . . . . . . . . . . . . . . . . . . . . Actions | -11 -10 -9 -9 -8 -7 -7 -7 -7 -6 -6 -5 -5 -5 -5 -5 -5 -4 -4 -4 -4 -4 -3 -3 -3 -2 -1 --------- Run | Scr Mat Mat Min Mat Fac Low Low Dat Pro Fac Fac Was Fac Upp Upp Zhi Pro Fac Upp Upp War Pro Res Tes Res Acc Total 17525 | 49 353 81 127 513 786 744 1306 87 1088 404 555 257 835 828 606 169 485 1592 662 697 574 659 1416 1293 959 400 Wait 1551 | . 22 . 3 39 113 13 142 12 87 20 67 15 66 61 5 . 6 343 65 14 . 50 152 230 7 19 Move 14069 | 37 262 71 99 331 548 672 1140 75 942 324 449 238 700 709 553 158 443 1091 536 640 533 559 1022 830 774 333 Hop 2 | . . . . . . . 2 . . . . . . . . . . . . . . . . . . . Pick Up 192 | 6 10 5 2 14 18 1 4 . 3 10 7 . 11 4 4 1 1 23 1 4 6 2 26 12 17 . Fast Attach 208 | 6 5 . 1 11 5 3 1 . 5 8 3 . 5 6 3 3 5 20 5 7 4 3 31 39 25 4 Attach 137 | . 1 2 1 7 8 6 . . 3 3 1 . 2 2 8 2 4 10 10 4 6 3 16 15 11 12 Detach 71 | . 1 . . . 1 . . . 1 4 2 . . . 2 4 3 7 . 4 3 . 10 14 14 1 Swap 96 | . 1 1 1 6 11 5 2 . 7 6 4 2 9 4 2 . . 5 1 3 1 1 8 4 10 2 Drop 201 | . 8 2 2 7 19 1 4 . 8 11 7 2 22 9 1 1 1 18 . 3 3 1 17 24 28 2 Fire 872 | . 43 . 18 98 63 30 11 . 32 14 15 . 15 29 28 . 22 73 35 18 18 31 87 93 73 26 Melee 99 | . . . . . . 1 . . . 4 . . . . . . . . 9 . . 9 47 29 . . Ram . | . . . . . . . . . . . . . . . . . . . . . . . . . . . Kick 3 | . . . . . . . . . . . . . . . . . . 2 . . . . . . . 1 Crush 2 | . . . . . . . . . . . . . . . . . . . . . . . . 2 . . Escape Stasis 5 | . . . . . . . . . . . . . 5 . . . . . . . . . . . . . Rewire 17 | . . . . . . 12 . . . . . . . 4 . . . . . . . . . 1 . . Trap . | . . . . . . . . . . . . . . . . . . . . . . . . . . . Miscellaneous . | . . . . . . . . . . . . . . . . . . . . . . . . . . . Route ------- -11/Scrapyard -10/Materials -9/Materials -9/Mines -8/Materials -7/Factory -7/Lower Caves -7/Lower Caves (discovered 2 exits: *Fac / *Dat) -7/Data Miner -6/Proximity Caves -6/Factory (discovered 2 exits: *Fac / Low) -5/Factory -5/Waste -5/Factory -5/Upper Caves -5/Upper Caves (discovered 2 exits: *Fac / *Zhi) -5/Zhirov -4/Proximity Caves -4/Factory (discovered 2 exits: [*Upp] / [*Ext]) -4/Upper Caves -4/Upper Caves (discovered 2 exits: *Res / *War) -4/Warlord -3/Proximity Caves -3/Research -3/Testing -2/Research -1/Access (discovered 2 exits: *Sur / Com) To Epsilon Eridani History --------- Turn | Location | Event 19 | -11/Scrapyard | Discovered new exit (range 15) 58 | -11/Scrapyard | Entered Materials 282 | -10/Materials | Lost 3 parts (1u2w) 311 | -10/Materials | Build established: Mutant 575 | -10/Materials | Discovered new exit (range 16) 614 | -10/Materials | Entered another Materials area 614 | -9/Materials | Evolved 2 slots: Propulsion x2 675 | -9/Materials | Discovered new exit (range 15) 730 | -9/Materials | Entered Mines 790 | -9/Mines | Met a Derelict bent on vengeance 923 | -9/Mines | Build established: Scavenger-Mutant 923 | -9/Mines | Discovered new exit (range 5) 931 | -9/Mines | Entered Materials 931 | -8/Materials | Evolved 2 slots: Propulsion x1, Weapon x1 1232 | -8/Materials | Discovered new exit (range 16) 1378 | -8/Materials | Core integrity fell below 50% 1403 | -8/Materials | Lost 10 parts (2p6n2w) 1593 | -8/Materials | Garrison activated, responded to threat 1689 | -8/Materials | Entered Factory 1689 | -7/Factory | Evolved 2 slots: Utility x2 2014 | -7/Factory | Build established: Scavenger-Skirmisher 2187 | -7/Factory | Lost 7 parts (3n1u3w) 2384 | -7/Factory | Fabricated L-41 Fighter (x3) 2440 | -7/Factory | Build established: Scavenger-Mutant 2489 | -7/Factory | Local fabrication network quarantined 2534 | -7/Factory | Fabricated L-41 Fighter (x3) 2796 | -7/Factory | Discovered new exit (range 16) 2827 | -7/Factory | Entered Lower Caves 2827 | -7/Lower Caves | Accompanied by 3 allies 2854 | -7/Lower Caves | Encountered a Warlord checkpoint 3424 | -7/Lower Caves | Learned location of 1 exit from Factory 3442 | -7/Lower Caves | Attracted the attention of an 0b10 outpost 3530 | -7/Lower Caves | Lost 5 parts (1p1n1u2w) 3601 | -7/Lower Caves | Lost 4 parts (2n2u) 3789 | -7/Lower Caves | Discovered new exit (range 10) 3802 | -7/Lower Caves | Identified exit to Lower Caves 3809 | -7/Lower Caves | Entered another Lower Caves area 3809 | -7/Lower Caves | Accompanied by 2 allies 3914 | -7/Lower Caves | Build established: Scavenger-Tank 3942 | -7/Lower Caves | Found Prototype Device 4171 | -7/Lower Caves | Learned Factory non-interactive machine intel 4237 | -7/Lower Caves | Discovered new exit (range 15) 4251 | -7/Lower Caves | Identified exit to Data Miner 4995 | -7/Lower Caves | Discovered new exit (range 6) 5002 | -7/Lower Caves | Encountered a Warlord checkpoint 5002 | -7/Lower Caves | Identified exit to Factory 5357 | -7/Lower Caves | Entered Data Miner 5357 | -7/Data Miner | Accompanied by 2 allies 5357 | -7/Data Miner | Discovered new exit (range 6) 5380 | -7/Data Miner | Met Data Miner 5401 | -7/Data Miner | Learned location of Section 7 (-2) 5401 | -7/Data Miner | Acquired the access code to Warlord's prototype stash 5421 | -7/Data Miner | Received God Mode back door access code from Data Miner 5446 | -7/Data Miner | Identified exit to Proximity Caves 5459 | -7/Data Miner | Entered Proximity Caves 5459 | -6/Proximity Caves | Accompanied by 2 allies 5745 | -6/Proximity Caves | Escorted by Enhanced Grunt 5756 | -6/Proximity Caves | Attracted the attention of an 0b10 checkpoint 6715 | -6/Proximity Caves | Spotted B-75 Beast 6754 | -6/Proximity Caves | Core integrity fell below 50% 6755 | -6/Proximity Caves | Destroyed B-75 Beast 6784 | -6/Proximity Caves | Lost 7 parts (4n1u2w) 6793 | -6/Proximity Caves | Discovered exit to Factory (range 7) 6817 | -6/Proximity Caves | Entered Factory 6817 | -6/Factory | Evolved 2 slots: Utility x2 6818 | -6/Factory | Identified exit to Lower Caves 6819 | -6/Factory | Loaded intel: 228 non-interactive machine locations 7068 | -6/Factory | Spotted B-75 Beast 7337 | -6/Factory | Discovered new exit (range 13) 7367 | -6/Factory | Identified exit to Factory 7390 | -6/Factory | Entered another Factory area 7390 | -5/Factory | Evolved 2 slots: Power x1, Propulsion x1 8076 | -5/Factory | Repaired Adv. Plasma Cannon 8195 | -5/Factory | Sucked down chute 8195 | -5/Factory | Entered Waste 8196 | -5/Waste | Joined by Warlord forces that had cleared the area 8538 | -5/Waste | Discovered new exit (range 12) 8553 | -5/Waste | Identified exit to Factory 8571 | -5/Waste | Entered Factory 8571 | -5/Factory | Accompanied by 20 allies 9105 | -5/Factory | Incoming investigation squad redirected 9430 | -5/Factory | Fabricated Arm. Leg (x2) 9471 | -5/Factory | First assault squad dispatched 9600 | -5/Factory | Discovered new exit (range 10) 9625 | -5/Factory | Identified exit to Upper Caves 9626 | -5/Factory | Entered Upper Caves 9661 | -5/Upper Caves | Attracted the attention of an 0b10 checkpoint 9717 | -5/Upper Caves | Found Alien Artifact 9717 | -5/Upper Caves | Identified Core Expander 9717 | -5/Upper Caves | Installed Core Expander, added new Propulsion slot 9826 | -5/Upper Caves | Attracted the attention of an 0b10 outpost 10631 | -5/Upper Caves | Discovered new exit (range 13) 10654 | -5/Upper Caves | Identified exit to Upper Caves 10654 | -5/Upper Caves | Spotted B-75 Beast 10656 | -5/Upper Caves | Entered another Upper Caves area 10789 | -5/Upper Caves | Discovered new exit (range 7) 10795 | -5/Upper Caves | Identified exit to Factory 10886 | -5/Upper Caves | Attracted the attention of an 0b10 checkpoint 10995 | -5/Upper Caves | Lost 5 parts (1p1n1u2w) 11242 | -5/Upper Caves | Learned Factory garrison access intel 11421 | -5/Upper Caves | Discovered new exit (range 9) 11431 | -5/Upper Caves | Identified exit to Zhirov 11432 | -5/Upper Caves | Entered Zhirov 11432 | -5/Zhirov | Discovered new exit (range 3) 11454 | -5/Zhirov | Met Zhirov 11485 | -5/Zhirov | Found Alien Artifact 11485 | -5/Zhirov | Identified Integrated Dissipator 11485 | -5/Zhirov | Installed Integrated Dissipator, increased core heat dissipation (+20) 11501 | -5/Zhirov | Found Alien Artifact 11568 | -5/Zhirov | Build established: Scavenger-Gunner 11584 | -5/Zhirov | Learned location of Quarantine (-2) 11584 | -5/Zhirov | Learned location of Testing (-3) 11584 | -5/Zhirov | Learned location of Command (-1) 11600 | -5/Zhirov | Zhirov requested help retrieving the SGEMP Prototype 11631 | -5/Zhirov | Identified exit to Proximity Caves 11632 | -5/Zhirov | Entered Proximity Caves 11854 | -4/Proximity Caves | Lost 6 parts (4n2w) 12154 | -4/Proximity Caves | Build established: Scavenger-Tank 12251 | -4/Proximity Caves | Discovered exit to Factory (range 7) 12258 | -4/Proximity Caves | Entered Factory 12258 | -4/Factory | Evolved 2 slots: Utility x2 12259 | -4/Factory | Loaded intel: 4 garrison access locations 13251 | -4/Factory | Repaired Arm. Leg 13277 | -4/Factory | Repaired Arm. Leg 13421 | -4/Factory | Fabricated Arm. Leg (x2) 13623 | -4/Factory | Lost 7 parts (3n4u) 13875 | -4/Factory | Discovered new exit (range 16) 13919 | -4/Factory | Build established: Scavenger-Gunner 14098 | -4/Factory | Fabricated X-72 Disruptor (x2) 14202 | -4/Factory | Garrison activated, responded to threat 14210 | -4/Factory | Discovered new exit (range 11) 14223 | -4/Factory | Entered Upper Caves 14279 | -4/Upper Caves | Encountered a Warlord checkpoint 14289 | -4/Upper Caves | Learned Research stockpile data 14290 | -4/Upper Caves | Lost 6 parts (1n2u3w) 14398 | -4/Upper Caves | Identified exit to Upper Caves 14472 | -4/Upper Caves | Attracted the attention of an 0b10 checkpoint 14633 | -4/Upper Caves | Spotted B-86 Titan 14663 | -4/Upper Caves | Attracted the attention of an 0b10 outpost 14758 | -4/Upper Caves | Lost 6 parts (1p2n1u2w) 14936 | -4/Upper Caves | Build established: Scavenger-Mutant 15079 | -4/Upper Caves | Entered another Upper Caves area 15093 | -4/Upper Caves | Identified exit to Research 15236 | -4/Upper Caves | Learned Research interactive machine intel 15288 | -4/Upper Caves | Core integrity fell below 50% 15616 | -4/Upper Caves | Build established: Scavenger-Gunner 15760 | -4/Upper Caves | Spotted B-86 Titan 15772 | -4/Upper Caves | Encountered a Warlord checkpoint 15872 | -4/Upper Caves | Discovered new exit (range 7) 15874 | -4/Upper Caves | Attracted the attention of an 0b10 checkpoint 15943 | -4/Upper Caves | Entered Warlord 15983 | -4/Warlord | System corruption cleaned by Quarantine Array 16080 | -4/Warlord | Received a Watcher feed algorithm from an ecstatic Tinkerer 16120 | -4/Warlord | Visited the Vortex Lab 16123 | -4/Warlord | Found Prototype Energy Gun 16126 | -4/Warlord | Found Prototype Energy Gun 16130 | -4/Warlord | Found Prototype Energy Cannon 16132 | -4/Warlord | Found Prototype Energy Cannon 16135 | -4/Warlord | Warlord's base attacked by MAIN.C 16135 | -4/Warlord | Found Prototype Launcher 16395 | -4/Warlord | Met Warlord 16485 | -4/Warlord | Warlord forces counterattacked 16518 | -4/Warlord | Spotted Executioner 16519 | -4/Warlord | Spotted Striker 16526 | -4/Warlord | Identified Vortex Catalyst Activator 16529 | -4/Warlord | Destroyed Striker 16552 | -4/Warlord | Destroyed 13 combat bots 16567 | -4/Warlord | Lost 4 parts (1p2n1w) 16568 | -4/Warlord | Spotted Striker 16570 | -4/Warlord | Spotted B-90 Cyclops 16580 | -4/Warlord | Spotted Executioner 16582 | -4/Warlord | Destroyed Executioner 16586 | -4/Warlord | Identified Vortex Cannon (x2) 16605 | -4/Warlord | Destroyed 8 combat bots 16611 | -4/Warlord | Lost 3 parts (1u2w) 16627 | -4/Warlord | Identified Vortex Shotgun (x2) 16642 | -4/Warlord | Discovered new exit (range 12) 16654 | -4/Warlord | Entered Proximity Caves 16794 | -3/Proximity Caves | Spotted B-86 Titan 16953 | -3/Proximity Caves | Build established: Scavenger-Mutant 17444 | -3/Proximity Caves | Discovered exit to Research (range 8) 17479 | -3/Proximity Caves | Attracted the attention of an 0b10 outpost 17479 | -3/Proximity Caves | Entered Research 17479 | -3/Research | Evolved 2 slots: Propulsion x1, Weapon x1 17481 | -3/Research | Loaded intel: 39 interactive machine locations 17539 | -3/Research | Fabricated Imp. Arc Thrower (x1) 17614 | -3/Research | Spotted B-86 Titan 17616 | -3/Research | Lost 3 parts (1p2n) 17886 | -3/Research | Lost 7 parts (3p2n2u) 18157 | -3/Research | Lost 4 parts (1p2u1w) 18224 | -3/Research | Found Prototype Device 18224 | -3/Research | Identified Exp. Thermal Shield 18283 | -3/Research | Found Powered Armor 18286 | -3/Research | Found Powered Armor 18381 | -3/Research | System corruption reached 10% 18407 | -3/Research | Lost 6 parts (1p1n1u3w) 18499 | -3/Research | Spotted B-86 Titan 18904 | -3/Research | Build established: Scavenger-Gunner 19291 | -3/Research | Build established: Scavenger-Mutant 19384 | -3/Research | Destroyed B-86 Titan 19399 | -3/Research | Spotted B-86 Titan 19400 | -3/Research | Lost 6 parts (3n2u1w) 19405 | -3/Research | Found Unknown Protection 19405 | -3/Research | Identified Hvy. Reflective Plating 19635 | -3/Research | Discovered new exit (range 7) 19662 | -3/Research | Entered Testing 19749 | -3/Testing | Found Prototype Device 19749 | -3/Testing | Identified AEGIS Remote Shield 20115 | -3/Testing | Found Prototype Ballistic Gun 20116 | -3/Testing | Identified Hyp. Multirail 20283 | -3/Testing | Scanned by Researcher 20480 | -3/Testing | Lost 8 parts (1p3n1u3w) 20550 | -3/Testing | Build established: Scavenger-Gunner 20593 | -3/Testing | Found Prototype Device 20593 | -3/Testing | Identified EM Disruption Field 20683 | -3/Testing | Found Prototype Device 20683 | -3/Testing | Identified Exp. Thermal Shield 20689 | -3/Testing | Spotted Striker 20756 | -3/Testing | Spotted Striker 20768 | -3/Testing | Lost 3 parts (3w) 20773 | -3/Testing | Found Prototype Slashing Weapon 20773 | -3/Testing | Identified Molecular Scythe 20816 | -3/Testing | Destroyed Striker 20823 | -3/Testing | Spotted Alpha 7 20825 | -3/Testing | Destroyed Striker 20859 | -3/Testing | Destroyed Alpha 7 20885 | -3/Testing | Lost 7 parts (3n2u2w) 20893 | -3/Testing | Stole the SGEMP Prototype 20952 | -3/Testing | Found Prototype Slashing Weapon 20952 | -3/Testing | Identified Centrium Greatsword 21038 | -3/Testing | Lost 4 parts (1p1n2u) 21140 | -3/Testing | Build established: Scavenger-Mutant 21192 | -3/Testing | System corruption reached 30% 21317 | -3/Testing | Found Prototype Protection 21317 | -3/Testing | Identified Centrium Heavy Armor Plating 21321 | -3/Testing | Found Centrium Heavy Armor Plating 21342 | -3/Testing | Lost 3 parts (2n1u) 21366 | -3/Testing | Core integrity fell below 50% 21437 | -3/Testing | Discovered new exit (range 7) 21444 | -3/Testing | Entered Research 21444 | -2/Research | Warlord forces began assault on 0b10 21444 | -2/Research | Evolved 2 slots: Utility x2 21554 | -2/Research | Research machine network offline 21694 | -2/Research | Spotted Striker 21698 | -2/Research | Spotted B-90 Cyclops 21710 | -2/Research | Destroyed Striker 21771 | -2/Research | Lost 6 parts (2n4w) 21846 | -2/Research | Spotted Striker 21853 | -2/Research | Borebot progress halted 21856 | -2/Research | Destroyed Striker 21885 | -2/Research | Destroyed 7 combat bots 21885 | -2/Research | Spotted Striker 21887 | -2/Research | Spotted Striker 21889 | -2/Research | Destroyed Striker 21894 | -2/Research | Borebot progress halted 21896 | -2/Research | Destroyed Striker 21966 | -2/Research | Destroyed 11 combat bots 21971 | -2/Research | Lost 3 parts (1u2w) 21972 | -2/Research | Spotted B-90 Cyclops 22006 | -2/Research | Destroyed B-90 Cyclops 22010 | -2/Research | Met up with Warlord 22199 | -2/Research | Discovered new exit (range 14) 22278 | -2/Research | Build established: Scavenger-Gunner 22323 | -2/Research | Spotted Executioner 22323 | -2/Research | Spotted Executioner 22334 | -2/Research | Destroyed Executioner 22352 | -2/Research | Destroyed Executioner 22667 | -2/Research | Entered Access 22667 | -1/Access | Evolved 2 slots: Propulsion x2 22668 | -1/Access | Loaded intel: 119 machine locations 22668 | -1/Access | Loaded intel: 60 trap records 22668 | -1/Access | Identified exit to Surface 22668 | -1/Access | Discovered exit to Surface (range 222) 22668 | -1/Access | Identified exit to Command 22668 | -1/Access | Discovered exit to Command (range 117) 22668 | -1/Access | Delivered the SGEMP Prototype to Zhirov 22668 | -1/Access | Zhirov transferred Access data 22839 | -1/Access | Garrison activated, responded to threat 22853 | -1/Access | Zhirov warped through subspace 22957 | -1/Access | First assault squad dispatched 22985 | -1/Access | Incoming assault squad redirected 23021 | -1/Access | Incoming assault squad redirected 23166 | -1/Access | Lost 25 parts (2p10n5u8w) 23215 | *** | Escaped! Last Messages --------------- 23185_ Slug penetrates Wall. 23188_ Critical hit. 23188_ Arm. Heavy Treads destroyed. 23188_ Penetrated by Slug. 23201_ Connecting with Terminal... 23201_ Current location identified: Access >>Open Sealed Barrier opened. Feedback: System corruption (+1%). 23201_ ALERT: Suspicious activity at Terminal A001. Dispatching Investigation squad. 23203_ U-05 Engineer lays Concrete. 23206_ The Access Shell folds into the floor. 23209_ U-05 Engineer lays Concrete. 23211_ Slug penetrates Reinforced Barrier. 23213_ Slug penetrates Terminal. 23214_ Penetrated by Slug. 23214_ Slug penetrates Sealed Heavy Doors. [Achievement: 40k Club] [Achievement: Epsilon Run] Map ----- +----------------------------------------------------+ | ^ ################ ######### | | ^ ##### ######### | | ^ ##### ######### | | ################### | | ################### | | ################### | | ## ################### | | ## """"T"""" ### ## ################### | | ##"""""""""""### ## ################### | | ################ ## ################### | | ################### ## ## ######## | | ###############+####+## ############# | | ######### # # | | ######### # # | | ######### # " # ###+###### | | ######### # """ + ## | | ######### # """ # ## | | ######### # " # ## | | ############# ################### ## | | ################################# ## | | ######################### ####### ## | | ##### """" ## | | ##### """" ## | | ########## """" ## | | """" ## | | """" "@ ## | | """" "" ## | | """" gu ## | | ########## """" h ## | | #### """" """ """h ## | | #### """" """T""" ## | | ######################## ####### ## | | ################################ ## | | """" ################################ ########## | | """" ################### # ########## | | """" ################### * # ########## | | """" ################### " ########## | | """" ################### # ########## | | """" ################### # | | ################### # | | ################### # ########## | | ######################### # ########## | | ######################### # # | | ######################### " " # # | | ######################### ""R"" # # "" | | ######################### """"" # # """ | | ###################################### / T" | | ###################################### # """ | | ###################################### # "" | | ###################################### #!! | +----------------------------------------------------+ Best States ------------- Heat Dissipation 242 Energy Generation 46 Energy Capacity 1240 Matter Stores 500 Matter Capacity 500 Sight Range 16 Robot Scan Range 16 Terrain Scan Density 10 Power Amplification 30 Additional Mass Support 12 Armor Coverage 1350 Resistance: TH 30 Phase Shifting 10 Evasion (%) 55 Targeting Accuracy 16 Target Analysis 6 Recoil Reduction 8 Energy Filtering 50 Offensive Hacking 14 Item Schematics ----------------- Combat Drone Bay | -7/Data Miner | Free Lgt. Regenerative Plating | -7/Data Miner | Free Exp. Sensor Array | -7/Data Miner | Free Exp. Terrain Scanner | -7/Data Miner | Free Exp. Terrain Scan Processor | -7/Data Miner | Free Exp. Transmission Jammer | -7/Data Miner | Free Kinetic Spear | -7/Data Miner | Free Hvy. Siege Treads | -5/Factory | Hacked Arm. Leg | -5/Factory | Hacked Assault Drone Bay | -5/Zhirov | Free Exp. Heat Sink | -5/Zhirov | Free Exp. Optical Array | -5/Zhirov | Free Imp. Arc Thrower | -5/Zhirov | Free Robot Schematics ------------------ S-27 Virus | -7/Data Miner | Free G-50 Soldier | -7/Data Miner | Free G-67 Veteran | -7/Data Miner | Free X-72 Disruptor | -7/Data Miner | Free P-70 Sage | -7/Data Miner | Free I-36 Angel | -7/Data Miner | Free I-47 Archangel | -7/Data Miner | Free Fabricated ------------ L-41 Fighter | x3 | -7/Factory | Preloaded L-41 Fighter | x3 | -7/Factory | Preloaded Arm. Leg | x2 | -5/Factory Arm. Leg | x2 | -4/Factory X-72 Disruptor | x2 | -4/Factory | Preloaded Imp. Arc Thrower | x1 | -3/Research Alien Tech Used ----------------- Core Expander Integrated Dissipator Achievements -------------- 40k Club Epsilon Run Ooh, Shiny! Special Delivery We Are Legion Challenges ------------ None Game ------ Seed BiocellStructuralStorage Manual? 0 Play Time 03:29:55 Cumulative 87.0 hours Start 2021.06.14 @ 15:07:45 End 2021.06.14 @ 21:02:35 Sessions 5 Manual Loads 0 Difficulty Rogue Special Mode None Game No. 53 Rogue 53 Adventurer 0 Explorer 0 Win Type 0 Total 1 Types 1/0/0/0/0/0/0/0/0 Lore% 43 Gallery% 57 Achievement% 41 Wizard Run 0 Options --------- ASCII 0 Keyboard 1 Movement Numpad Keybinds 0 Fullscreen 1 Font 18/SmallcapsGlow Map View 76x50 Tactical HUD 1 Map Filters NONE Filters NONE Steam 1 RUN: 6df4093f-de44-4184-86e8-67dda2058f07